fUSD/lending_fUSD_20250123
["ID","MTS","AMOUNT","RATE_DAILY","PERIOD"]
[350135121,1737647450984,-500.0,0.00017533,2]
[350135122,1737647450997,-500.0,0.00017533,2]
[350135123,1737647451006,-500.0,0.00017533,2]
[350135124,1737647451015,-2329.93,0.00017533,2]
[350135125,1737647451025,-500.0,0.00017533,2]
[350135126,1737647451041,-500.0,0.00017533,2]
[350135127,1737647451050,-500.0,0.00017533,2]
[350135128,1737647451059,-500.0,0.00017533,2]
[350135129,1737647451068,-500.0,0.00017533,2]
[350135130,1737647451077,-1599.66,0.00017533,2]
[350135131,1737647451087,-500.0,0.00017533,2]
[350135132,1737647451096,-500.0,0.00017533,2]
[350135133,1737647451105,-665.41,0.00017533,2]
[350135134,1737647451115,-500.0,0.00017533,2]
[350135135,1737647451125,-562.07,0.00017533,2]
[350135136,1737647451134,-500.0,0.00017533,2]
[350135137,1737647451143,-1006.02,0.00017533,2]
[350135138,1737647451153,-589.73,0.00017533,2]
[350135139,1737647451162,-500.0,0.00017533,2]
[350135140,1737647451171,-511.97,0.00017533,2]
[350135141,1737647451180,-500.0,0.00017533,2]
[350135142,1737647451190,-500.0,0.00017533,2]
[350135143,1737647451199,-500.0,0.00017533,2]
[350135144,1737647451208,-500.0,0.00017533,2]
[350135145,1737647451217,-540.27,0.00017533,2]
[350135146,1737647451227,-717.31,0.00017533,2]
[350135147,1737647451236,-173.6918832,0.00017533,2]
[350135148,1737647451246,-398.04263118,0.00017533,2]
[350135149,1737647451255,-500.0,0.00017533,2]
[350135150,1737647451264,-871.24,0.00017533,2]
[350135151,1737647451273,-500.0,0.00017533,2]
[350135152,1737647451286,-500.0,0.00017533,2]
[350135153,1737647451296,-500.0,0.00017533,2]
[350135154,1737647451305,-500.0,0.00017533,2]
[350135155,1737647451315,-500.0,0.00017533,2]
[350135156,1737647451324,-500.0,0.00017533,2]
[350135157,1737647451333,-527.32,0.00017533,2]
[350135158,1737647451343,-664.83,0.00017533,2]
[350135159,1737647451353,-500.0,0.00017533,2]
[350135160,1737647451363,-741.75,0.00017533,2]
[350135161,1737647451372,-195.10519094,0.00017533,2]
[350135162,1737647451381,-519.05041613,0.00017533,2]
[350135163,1737647451390,-1781.45,0.00017533,2]
[350135164,1737647451399,-3676.86,0.00017533,2]
[350135165,1737647451408,-719.57,0.00017533,2]
[350135166,1737647451417,-500.0,0.00017533,2]
[350135167,1737647451427,-500.0,0.00017533,2]
[350135168,1737647451436,-500.0,0.00017533,2]
[350135169,1737647451446,-1215.22,0.00017533,2]
[350135170,1737647451457,-500.0,0.00017534,2]
[350135171,1737647451466,-500.0,0.00017534,2]
[350135172,1737647451475,-500.0,0.00017534,2]
[350135173,1737647451485,-500.0,0.00017534,2]
[350135174,1737647451494,-500.0,0.00017534,2]
[350135175,1737647451503,-500.0,0.00017534,2]
[350135176,1737647451512,-500.0,0.00017534,2]
[350135177,1737647451522,-500.0,0.00017534,2]
[350135178,1737647451533,-500.0,0.00017534,2]
[350135179,1737647451542,-500.0,0.00017534,2]
[350135180,1737647451552,-500.0,0.00017534,2]
[350135181,1737647451561,-500.0,0.00017534,2]
[350135182,1737647451571,-500.0,0.00017534,2]
[350135183,1737647451579,-500.0,0.00017534,2]
[350135184,1737647451589,-500.0,0.00017534,2]
[350135185,1737647451598,-500.0,0.00017534,2]
[350135186,1737647451607,-500.0,0.00017534,2]
[350135187,1737647451616,-500.0,0.00017534,2]
[350135188,1737647451625,-629.62,0.00017534,2]
[350135189,1737647451635,-571.0,0.00017534,2]
[350135190,1737647451646,-500.0,0.00017534,2]
[350135191,1737647451654,-500.0,0.00017534,2]
[350135192,1737647451663,-500.0,0.00017534,2]
[350135193,1737647451672,-500.0,0.00017534,2]
[350135194,1737647451682,-1000.0,0.00017571,2]
[350135195,1737647451691,-10329.14098245,0.00017628,2]
[350135196,1737647451700,-166.8928346,0.00017707,2]
[350135197,1737647451709,-500.0,0.00017707,2]
[350135198,1737647451719,-561.090122,0.00017707,2]
[350135199,1737647451728,-1990.7105,0.00017707,2]
[350135200,1737647451737,-405.87,0.00017759,2]
[350135201,1737647451747,-1200.0,0.000178,6]
[350135202,1737647451756,-569.29,0.00017805,2]
[350135203,1737647451766,-1245.27,0.00017805,2]
[350135204,1737647451776,-500.0,0.00017805,2]
[350135205,1737647451785,-500.0,0.00017805,2]
[350135206,1737647451795,-672.9,0.00017805,2]
[350135207,1737647451808,-1108.41,0.00017805,2]
[350135208,1737647451817,-970.51,0.00017805,2]
[350135209,1737647451827,-697.89,0.00017805,2]
[350135210,1737647451837,-558.51,0.00017805,2]
[350135211,1737647451846,-608.89,0.00017805,2]
[350135212,1737647451856,-1379.71,0.00017805,2]
[350135213,1737647451865,-1007.83,0.00017805,2]
[350135214,1737647451874,-554.92,0.00017805,2]
[350135215,1737647451884,-500.0,0.00017805,2]
[350135216,1737647451895,-500.0,0.00017805,2]
[350135217,1737647451904,-500.0,0.00017805,2]
[350135218,1737647451913,-1327.79,0.00017805,2]
[350135219,1737647451922,-1072.62,0.00017805,2]
[350135220,1737647451933,-500.0,0.00017805,2]
[350135221,1737647451942,-500.0,0.00017805,2]
[350135222,1737647451951,-1330.28,0.00017805,2]
[350135223,1737647451961,-1195.9,0.00017805,2]
[350135224,1737647451970,-949.32,0.00017805,2]
[350135225,1737647451980,-709.6,0.00017805,2]
[350135226,1737647451989,-1284.96,0.00017805,2]
[350135227,1737647451999,-500.0,0.00017805,2]
[350135228,1737647452009,-541.59,0.00017805,2]
[350135229,1737647452018,-500.0,0.00017806,2]
[350135230,1737647452029,-534.17,0.00017806,2]
[350135231,1737647452045,-528.16,0.00017806,2]
[350135232,1737647452054,-636.83,0.00017806,2]
[350135233,1737647452063,-767.0,0.00017806,2]
[350135234,1737647452072,-879.09,0.00017806,2]
[350135235,1737647452082,-711.06,0.00017806,2]
[350135236,1737647452091,-879.66,0.00017806,2]
[350135237,1737647452100,-557.83,0.00017806,2]
[350135238,1737647452110,-1401.9,0.00017806,2]
[350135239,1737647452119,-1414.47,0.00017806,2]
[350135240,1737647452129,-687.66,0.00017806,2]
[350135241,1737647452138,-760.23,0.00017806,2]
[350135242,1737647452148,-1243.09,0.00017806,2]
[350135243,1737647452157,-500.0,0.00017806,2]
[350135244,1737647452167,-500.0,0.00017806,2]
[350135245,1737647452176,-1504.56,0.00017806,2]
[350135246,1737647452187,-876.4,0.00017806,2]
[350135247,1737647452196,-2321.83,0.00017806,2]
[350135248,1737647452206,-957.07,0.00017806,2]
[350135249,1737647452215,-726.6,0.00017806,2]
[350135250,1737647452225,-500.0,0.00017806,2]
[350135251,1737647452236,-1370.17,0.00017806,2]
[350135252,1737647452246,-623.3,0.00017806,2]
[350135253,1737647452256,-500.0,0.00017806,2]
[350135254,1737647452267,-759.91,0.00017806,2]
[350135255,1737647452277,-696.21,0.00017806,2]
[350135256,1737647452288,-649.66,0.00017806,2]
[350135257,1737647452297,-622.4,0.00017806,2]
[350135258,1737647452307,-1359.59,0.00017806,2]
[350135259,1737647452317,-500.33,0.00017806,2]
[350135260,1737647452327,-799.72,0.00017806,2]
[350135261,1737647452336,-1299.82,0.00017806,2]
[350135262,1737647452346,-500.0,0.00017806,2]
[350135263,1737647452355,-1070.08,0.00017806,2]
[350135264,1737647452364,-716.17,0.00017806,2]
[350135265,1737647452374,-2156.67,0.00017806,2]
[350135266,1737647452383,-500.0,0.00017807,2]
[350135267,1737647452392,-500.0,0.00017807,2]
[350135268,1737647452401,-500.0,0.00017807,2]
[350135269,1737647452411,-500.0,0.00017807,2]
[350135270,1737647452419,-500.0,0.00017807,2]
[350135271,1737647452429,-500.0,0.00017807,2]
[350135272,1737647452438,-500.0,0.00017807,2]
[350135273,1737647452447,-500.0,0.00017807,2]
[350135274,1737647452457,-500.0,0.00017807,2]
[350135275,1737647452467,-500.0,0.00017807,2]
[350135276,1737647452476,-500.0,0.00017807,2]
[350135277,1737647452485,-500.0,0.00017807,2]
[350135278,1737647452494,-500.0,0.00017807,2]
[350135279,1737647452503,-500.0,0.00017807,2]
[350135280,1737647452513,-500.0,0.00017807,2]
[350135281,1737647452523,-500.0,0.00017807,2]
[350135282,1737647452532,-500.0,0.00017807,2]
[350135283,1737647452543,-500.0,0.00017807,2]
[350135284,1737647452552,-500.0,0.00017807,2]
[350135285,1737647452561,-500.0,0.00017807,2]
[350135286,1737647452570,-500.0,0.00017807,2]
[350135287,1737647452579,-500.0,0.00017807,2]
[350135288,1737647452588,-500.0,0.00017807,2]
[350135289,1737647452598,-500.0,0.00017807,2]
[350135290,1737647452607,-500.0,0.00017807,2]
[350135291,1737647452617,-2329.93,0.00017807,2]
[350135292,1737647452628,-500.0,0.00017807,2]
[350135293,1737647452637,-500.0,0.00017807,2]
[350135294,1737647452647,-500.0,0.00017807,2]
[350135295,1737647452656,-500.0,0.00017807,2]
[350135296,1737647452666,-1599.66,0.00017807,2]
[350135297,1737647452676,-500.0,0.00017807,2]
[350135298,1737647452685,-500.0,0.00017807,2]
[350135299,1737647452694,-665.41,0.00017807,2]
[350135300,1737647452704,-500.0,0.00017807,2]
[350135301,1737647452714,-562.07,0.00017807,2]
[350135302,1737647452724,-500.0,0.00017807,2]
[350135303,1737647452733,-1006.02,0.00017807,2]
[350135304,1737647452742,-589.73,0.00017807,2]
[350135305,1737647452752,-500.0,0.00017807,2]
[350135306,1737647452761,-511.97,0.00017807,2]
[350135307,1737647452771,-500.0,0.00017807,2]
[350135308,1737647452780,-500.0,0.00017807,2]
[350135309,1737647452792,-540.27,0.00017807,2]
[350135310,1737647452802,-717.31,0.00017807,2]
[350135311,1737647452813,-871.24,0.00017807,2]
[350135312,1737647452823,-500.0,0.00017807,2]
[350135313,1737647452832,-500.0,0.00017807,2]
[350135314,1737647452842,-342.15440488,0.00017807,2]
[350135315,1737647452851,-500.0,0.00017807,2]
[350135316,1737647452861,-500.0,0.00017807,2]
[350135317,1737647452871,-500.0,0.00017807,2]
[350135318,1737647452881,-527.32,0.00017807,2]
[350135319,1737647452896,-664.83,0.00017807,2]
[350135320,1737647452905,-453.59169144,0.00017807,2]
[350135321,1737647452915,-741.75,0.00017807,2]
[350135322,1737647452924,-1781.45,0.00017807,2]
[350135323,1737647452935,-3676.86,0.00017807,2]
[350135324,1737647452945,-719.57,0.00017807,2]
[350135325,1737647452955,-500.0,0.00017807,2]
[350135326,1737647452965,-1215.22,0.00017807,2]
[350135327,1737647452975,-500.0,0.00017808,2]
[350135328,1737647452985,-500.0,0.00017808,2]
[350135329,1737647452995,-500.0,0.00017808,2]
[350135330,1737647453005,-405.38590909,0.00017808,2]
[350135331,1737647453015,-500.0,0.00017808,2]
[350135332,1737647453025,-500.0,0.00017808,2]
[350135333,1737647453039,-500.0,0.00017808,2]
[350135334,1737647453050,-500.0,0.00017808,2]
[350135335,1737647453061,-500.0,0.00017808,2]
[350135336,1737647453073,-500.0,0.00017808,2]
[350135337,1737647453083,-500.0,0.00017808,2]
[350135338,1737647453094,-500.0,0.00017808,2]
[350135339,1737647453103,-500.0,0.00017808,2]
[350135340,1737647453114,-500.0,0.00017808,2]
[350135341,1737647453124,-464.58094647,0.00017808,2]
[350135342,1737647453135,-500.0,0.00017808,2]
[350135343,1737647453145,-629.62,0.00017808,2]
[350135344,1737647453155,-571.0,0.00017808,2]
[350135345,1737647453165,-500.0,0.00017808,2]
[350135346,1737647453311,-500.0,0.00017808,2]
[350135347,1737647453321,-500.0,0.00017808,2]
[350135348,1737647453332,-500.0,0.00017808,2]
[350135349,1737647453343,-10329.14098245,0.00017883,2]
[350135350,1737647453354,-2123.35160003,0.000179,2]
[350135351,1737647453364,-1800.0,0.000179,6]
[350135352,1737647453374,-500.0,0.00017981,2]
[350135353,1737647453386,-9259.21256613,0.00018,2]
[350135354,1737647453395,-850.0744839,0.00018,2]
[350135355,1737647453406,-2123.3515999,0.00018038,2]
[350135356,1737647453416,-495.58611496,0.00018055,2]
[350135357,1737647453426,-179.43852403,0.0001807,2]
[350135358,1737647453436,-569.29,0.00018079,2]
[350135359,1737647453447,-1245.27,0.00018079,2]
[350135360,1737647453458,-500.0,0.00018079,2]
[350135361,1737647453468,-500.0,0.00018079,2]
[350135362,1737647453479,-1108.41,0.00018079,2]
[350135363,1737647453488,-672.9,0.00018079,2]
[350135364,1737647453498,-970.51,0.00018079,2]
[350135365,1737647453507,-697.89,0.00018079,2]
[350135366,1737647453517,-558.51,0.00018079,2]
[350135367,1737647453527,-608.89,0.00018079,2]
[350135368,1737647453539,-1379.71,0.00018079,2]
[350135369,1737647453549,-1007.83,0.00018079,2]
[350135370,1737647453559,-554.92,0.00018079,2]
[350135371,1737647453569,-500.0,0.00018079,2]
[350135372,1737647453579,-500.0,0.00018079,2]
[350135373,1737647453589,-500.0,0.00018079,2]
[350135374,1737647453599,-1327.79,0.00018079,2]
[350135375,1737647453608,-1072.62,0.00018079,2]
[350135376,1737647453617,-500.0,0.00018079,2]
[350135377,1737647453627,-500.0,0.00018079,2]
[350135378,1737647453638,-1330.28,0.00018079,2]
[350135379,1737647453647,-1195.9,0.00018079,2]
[350135380,1737647453658,-949.32,0.00018079,2]
[350135381,1737647453670,-709.6,0.00018079,2]
[350135382,1737647453680,-1284.96,0.00018079,2]
[350135383,1737647453690,-500.0,0.00018079,2]
[350135384,1737647453699,-541.59,0.00018079,2]
[350135385,1737647453710,-500.0,0.0001808,2]
[350135386,1737647453719,-534.17,0.0001808,2]
[350135387,1737647453730,-528.16,0.0001808,2]
[350135388,1737647453741,-636.83,0.0001808,2]
[350135389,1737647453751,-767.0,0.0001808,2]
[350135390,1737647453760,-879.09,0.0001808,2]
[350135391,1737647453770,-711.06,0.0001808,2]
[350135392,1737647453780,-879.66,0.0001808,2]
[350135393,1737647453794,-557.83,0.0001808,2]
[350135394,1737647453807,-1401.9,0.0001808,2]
[350135395,1737647453824,-1414.47,0.0001808,2]
[350135396,1737647453834,-687.66,0.0001808,2]
[350135397,1737647453844,-760.23,0.0001808,2]
[350135398,1737647453856,-1243.09,0.0001808,2]
[350135399,1737647453866,-500.0,0.0001808,2]
[350135400,1737647453876,-500.0,0.0001808,2]
[350135401,1737647453888,-1504.56,0.0001808,2]
[350135402,1737647453898,-876.4,0.0001808,2]
[350135403,1737647453908,-2321.83,0.0001808,2]
[350135404,1737647453917,-957.07,0.0001808,2]
[350135405,1737647453927,-726.6,0.0001808,2]
[350135406,1737647453937,-500.0,0.0001808,2]
[350135407,1737647453947,-1370.17,0.0001808,2]
[350135408,1737647453957,-623.3,0.0001808,2]
[350135409,1737647453966,-500.0,0.0001808,2]
[350135410,1737647453977,-759.91,0.0001808,2]
[350135411,1737647453987,-696.21,0.0001808,2]
[350135412,1737647453998,-649.66,0.0001808,2]
[350135413,1737647454008,-622.4,0.0001808,2]
[350135414,1737647454018,-1359.59,0.0001808,2]
[350135415,1737647454029,-500.33,0.0001808,2]
[350135416,1737647454043,-799.72,0.0001808,2]
[350135417,1737647454053,-1299.82,0.0001808,2]
[350135418,1737647454064,-500.0,0.0001808,2]
[350135419,1737647454075,-1070.08,0.0001808,2]
[350135420,1737647454085,-716.17,0.0001808,2]
[350135421,1737647454094,-2156.67,0.0001808,2]
[350135422,1737647454104,-500.0,0.00018081,2]
[350135423,1737647454117,-500.0,0.00018081,2]
[350135424,1737647454127,-500.0,0.00018081,2]
[350135425,1737647454137,-500.0,0.00018081,2]
[350135426,1737647454147,-500.0,0.00018081,2]
[350135427,1737647454157,-500.0,0.00018081,2]
[350135428,1737647454167,-500.0,0.00018081,2]
[350135429,1737647454177,-500.0,0.00018081,2]
[350135430,1737647454187,-174.48194027,0.00018081,2]
[350135431,1737647454197,-500.0,0.00018081,2]
[350135432,1737647454207,-500.0,0.00018081,2]
[350135433,1737647454216,-500.0,0.00018081,2]
[350135434,1737647454226,-500.0,0.00018081,2]
[350135435,1737647454236,-500.0,0.00018081,2]
[350135436,1737647454245,-500.0,0.00018081,2]
[350135437,1737647454255,-500.0,0.00018081,2]
[350135438,1737647454266,-500.0,0.00018081,2]
[350135439,1737647454276,-500.0,0.00018081,2]
[350135440,1737647454287,-500.0,0.00018081,2]
[350135441,1737647454297,-500.0,0.00018081,2]
[350135442,1737647454307,-500.0,0.00018081,2]
[350135443,1737647454316,-500.0,0.00018081,2]
[350135444,1737647454326,-500.0,0.00018081,2]
[350135445,1737647454336,-500.0,0.00018081,2]
[350135446,1737647454345,-500.0,0.00018081,2]
[350135447,1737647454355,-2329.93,0.00018081,2]
[350135448,1737647454365,-500.0,0.00018081,2]
[350135449,1737647454374,-157.80533395,0.00018081,2]
[350135450,1737647454384,-500.0,0.00018081,2]
[350135451,1737647454395,-500.0,0.00018081,2]
[350135452,1737647454404,-1599.66,0.00018081,2]
[350135453,1737647454414,-500.0,0.00018081,2]
[350135454,1737647454423,-500.0,0.00018081,2]
[350135455,1737647454433,-665.41,0.00018081,2]
[350135456,1737647454442,-500.0,0.00018081,2]
[350135457,1737647454452,-562.07,0.00018081,2]
[350135458,1737647454463,-500.0,0.00018081,2]
[350135459,1737647454473,-1006.02,0.00018081,2]
[350135460,1737647454483,-589.73,0.00018081,2]
[350135461,1737647454494,-500.0,0.00018081,2]
[350135462,1737647454504,-511.97,0.00018081,2]
[350135463,1737647454514,-500.0,0.00018081,2]
[350135464,1737647454523,-500.0,0.00018081,2]
[350135465,1737647454534,-540.27,0.00018081,2]
[350135466,1737647454543,-717.31,0.00018081,2]
[350135467,1737647454553,-871.24,0.00018081,2]
[350135468,1737647454564,-500.0,0.00018081,2]
[350135469,1737647454574,-500.0,0.00018081,2]
[350135470,1737647454584,-500.0,0.00018081,2]
[350135471,1737647454593,-500.0,0.00018081,2]
[350135472,1737647454603,-500.0,0.00018081,2]
[350135473,1737647454613,-527.32,0.00018081,2]
[350135474,1737647454623,-664.83,0.00018081,2]
[350135475,1737647454632,-741.75,0.00018081,2]
[350135476,1737647454642,-1781.45,0.00018081,2]
[350135477,1737647454651,-3676.86,0.00018081,2]
[350135478,1737647454662,-719.57,0.00018081,2]
[350135479,1737647454672,-500.0,0.00018081,2]
[350135480,1737647454681,-1215.22,0.00018081,2]
[350135481,1737647454691,-500.0,0.00018082,2]
[350135482,1737647454700,-187.75336462,0.00018082,2]
[350135483,1737647454710,-1321.674,0.00018082,2]
[350135484,1737647454719,-500.0,0.00018082,2]
[350135485,1737647454729,-500.0,0.00018082,2]
[350135486,1737647454738,-408.46098256,0.00018082,2]
[350135487,1737647454747,-500.0,0.00018082,2]
[350135488,1737647454756,-500.0,0.00018082,2]
[350135489,1737647454766,-500.0,0.00018082,2]
[350135490,1737647454775,-500.0,0.00018082,2]
[350135491,1737647454786,-500.0,0.00018082,2]
[350135492,1737647454795,-500.0,0.00018082,2]
[350135493,1737647454810,-500.0,0.00018082,2]
[350135494,1737647454820,-500.0,0.00018082,2]
[350135495,1737647454829,-500.0,0.00018082,2]
[350135496,1737647454838,-629.62,0.00018082,2]
[350135497,1737647454849,-571.0,0.00018082,2]
[350135498,1737647454859,-500.0,0.00018082,2]
[350135499,1737647454869,-500.0,0.00018082,2]
[350135500,1737647454878,-500.0,0.00018082,2]
[350135501,1737647454887,-500.0,0.00018082,2]
[350135502,1737647454897,-1392.73,0.00018082,2]
[350135503,1737647454907,-982.28,0.00018082,2]
[350135504,1737647454916,-298.05,0.00018082,2]
[350135505,1737647454925,-323.59,0.00018082,2]
[350135506,1737647454935,-300.0,0.00018082,2]
[350135507,1737647454945,-875.34,0.00018082,2]
[350135508,1737647454955,-150.0,0.00018082,2]
[350135509,1737647454965,-300.0,0.00018082,2]
[350135510,1737647454974,-982.28,0.00018082,2]
[350135511,1737647454985,-10329.14098245,0.00018137,2]
[350135512,1737647454994,-1543.4621086,0.00018161,2]
[350135513,1737647455003,-500.0,0.00018164,2]
[350135514,1737647455014,-500.0,0.00018164,2]
[350135515,1737647455023,-495.58611496,0.00018164,2]
[350135516,1737647455035,-430.64066539,0.00018172,2]
[350135517,1737647455045,-2123.3515999,0.00018176,2]
[350135518,1737647455055,-748.0,0.00018177,2]
[350135519,1737647455065,-495.58611496,0.00018247,2]
[350135520,1737647455075,-500.0,0.00018255,2]
[350135521,1737647455085,-2123.3515999,0.00018314,2]
[350135522,1737647455095,-495.58611496,0.00018329,2]
[350135523,1737647455105,-569.29,0.00018353,2]
[350135524,1737647455116,-1245.27,0.00018353,2]
[350135525,1737647455126,-500.0,0.00018353,2]
[350135526,1737647455136,-500.0,0.00018353,2]
[350135527,1737647455146,-672.9,0.00018353,2]
[350135528,1737647455156,-1108.41,0.00018353,2]
[350135529,1737647455166,-970.51,0.00018353,2]
[350135530,1737647455176,-697.89,0.00018353,2]
[350135531,1737647455186,-558.51,0.00018353,2]
[350135532,1737647455196,-608.89,0.00018353,2]
[350135533,1737647455206,-1379.71,0.00018353,2]
[350135534,1737647455215,-1007.83,0.00018353,2]
[350135535,1737647455226,-554.92,0.00018353,2]
[350135536,1737647455235,-500.0,0.00018353,2]
[350135537,1737647455245,-500.0,0.00018353,2]
[350135538,1737647455255,-500.0,0.00018353,2]
[350135539,1737647455265,-1327.79,0.00018353,2]
[350135540,1737647455275,-1072.62,0.00018353,2]
[350135541,1737647455285,-500.0,0.00018353,2]
[350135542,1737647455295,-500.0,0.00018353,2]
[350135543,1737647455305,-1330.28,0.00018353,2]
[350135544,1737647455315,-1195.9,0.00018353,2]
[350135545,1737647455325,-949.32,0.00018353,2]
[350135546,1737647455335,-709.6,0.00018353,2]
[350135547,1737647455345,-1284.96,0.00018353,2]
[350135548,1737647455354,-500.0,0.00018353,2]
[350135549,1737647455365,-541.59,0.00018353,2]
[350135550,1737647455375,-187.08411737,0.00018354,2]
[350135551,1737647455385,-534.17,0.00018354,2]
[350135552,1737647455394,-528.16,0.00018354,2]
[350135553,1737647455404,-636.83,0.00018354,2]
[350135554,1737647455414,-767.0,0.00018354,2]
[350135555,1737647455424,-879.09,0.00018354,2]
[350135556,1737647455435,-711.06,0.00018354,2]
[350135557,1737647455444,-879.66,0.00018354,2]
[350135558,1737647455455,-557.83,0.00018354,2]
[350135559,1737647455465,-1401.9,0.00018354,2]
[350135560,1737647455475,-1414.47,0.00018354,2]
[350135561,1737647455488,-687.66,0.00018354,2]
[350135562,1737647455498,-760.23,0.00018354,2]
[350135563,1737647455509,-1243.09,0.00018354,2]
[350135564,1737647455518,-500.0,0.00018354,2]
[350135565,1737647455528,-500.0,0.00018354,2]
[350135566,1737647455539,-1504.56,0.00018354,2]
[350135567,1737647455549,-876.4,0.00018354,2]
[350135568,1737647455558,-2321.83,0.00018354,2]
[350135569,1737647455568,-957.07,0.00018354,2]
[350135570,1737647455578,-726.6,0.00018354,2]
[350135571,1737647455588,-500.0,0.00018354,2]
[350135572,1737647455599,-1370.17,0.00018354,2]
[350135573,1737647455609,-623.3,0.00018354,2]
[350135574,1737647455619,-500.0,0.00018354,2]
[350135575,1737647455629,-759.91,0.00018354,2]
[350135576,1737647455638,-696.21,0.00018354,2]
[350135577,1737647455648,-649.66,0.00018354,2]
[350135578,1737647455658,-622.4,0.00018354,2]
[350135579,1737647455669,-1359.59,0.00018354,2]
[350135580,1737647455679,-500.33,0.00018354,2]
[350135581,1737647455688,-799.72,0.00018354,2]
[350135582,1737647455699,-1299.82,0.00018354,2]
[350135583,1737647455708,-500.0,0.00018354,2]
[350135584,1737647455719,-1070.08,0.00018354,2]
[350135585,1737647455728,-716.17,0.00018354,2]
[350135586,1737647455739,-2156.67,0.00018354,2]
[350135587,1737647455748,-500.0,0.00018355,2]
[350135588,1737647455757,-500.0,0.00018355,2]
[350135589,1737647455767,-500.0,0.00018355,2]
[350135590,1737647455776,-500.0,0.00018355,2]
[350135591,1737647455788,-619.50780091,0.00018355,2]
[350135592,1737647455798,-500.0,0.00018355,2]
[350135593,1737647455807,-500.0,0.00018355,2]
[350135594,1737647455821,-500.0,0.00018355,2]
[350135595,1737647455831,-500.0,0.00018355,2]
[350135596,1737647455842,-500.0,0.00018355,2]
[350135597,1737647455852,-500.0,0.00018355,2]
[350135598,1737647455862,-500.0,0.00018355,2]
[350135599,1737647455872,-500.0,0.00018355,2]
[350135600,1737647455882,-500.0,0.00018355,2]
[350135601,1737647455891,-500.0,0.00018355,2]
[350135602,1737647455901,-500.0,0.00018355,2]
[350135603,1737647456052,-500.0,0.00018355,2]
[350135604,1737647456063,-500.0,0.00018355,2]
[350135605,1737647456073,-500.0,0.00018355,2]
[350135606,1737647456083,-500.0,0.00018355,2]
[350135607,1737647456093,-500.0,0.00018355,2]
[350135608,1737647456103,-500.0,0.00018355,2]
[350135609,1737647456113,-500.0,0.00018355,2]
[350135610,1737647456123,-500.0,0.00018355,2]
[350135611,1737647456133,-2329.93,0.00018355,2]
[350135612,1737647456144,-500.0,0.00018355,2]
[350135613,1737647456154,-500.0,0.00018355,2]
[350135614,1737647456164,-500.0,0.00018355,2]
[350135615,1737647456174,-1599.66,0.00018355,2]
[350135616,1737647456183,-500.0,0.00018355,2]
[350135617,1737647456193,-500.0,0.00018355,2]
[350135618,1737647456203,-665.41,0.00018355,2]
[350135619,1737647456213,-500.0,0.00018355,2]
[350135620,1737647456222,-562.07,0.00018355,2]